[Event "Titled Tuesday Blitz June 21 Late 2022"]
[White "Titichoca Daza, Daniel"]
[Black "Novikova, Galina"]
[WhiteFideId "3309550"]
[BlackFideId "4157095"]
[WhiteElo "1912"]
[BlackElo "1863"]
[Result "1/2-1/2"]
[Round "11"]
[TimeControl "180+1"]
[Date "2022.06.21"]
[WhiteClock "0:01:00"]
[BlackClock "0:00:09"]

1. Nf3 {[%clk 0:03:00]}  e6 {[%clk 0:02:58]} 2. c4 {[%clk 0:02:56]}  f5 {[%clk 0:02:58]} 3. g3 {[%clk 0:02:55]}  Nf6 {[%clk 0:02:59]} 4. Bg2 {[%clk 0:02:56]}  Be7 {[%clk 0:02:59]} 5. O-O {[%clk 0:02:57]}  O-O {[%clk 0:03:00]} 6. d3 {[%clk 0:02:57]}  d6 {[%clk 0:03:01]} 7. Nc3 {[%clk 0:02:58]}  e5 {[%clk 0:03:01]} 8. e4 {[%clk 0:02:58]}  Nc6 {[%clk 0:02:58]} 9. exf5 {[%clk 0:02:58]}  Bxf5 {[%clk 0:02:58]} 10. d4 {[%clk 0:02:59]}  Bg4 {[%clk 0:02:31]} 11. h3 {[%clk 0:02:36]}  Bxf3 {[%clk 0:02:26]} 12. Bxf3 {[%clk 0:02:33]}  exd4 {[%clk 0:02:25]} 13. Bxc6 {[%clk 0:02:33]}  bxc6 {[%clk 0:02:20]} 14. Qxd4 {[%clk 0:02:34]}  Qd7 {[%clk 0:02:14]} 15. Kg2 {[%clk 0:02:32]}  c5 {[%clk 0:02:15]} 16. Qd3 {[%clk 0:02:30]}  c6 {[%clk 0:01:57]} 17. Bg5 {[%clk 0:02:25]}  h6 {[%clk 0:01:43]} 18. Be3 {[%clk 0:02:19]}  d5 {[%clk 0:01:40]} 19. Bf4 {[%clk 0:02:17]}  Bd6 {[%clk 0:01:29]} 20. Bxd6 {[%clk 0:02:16]}  Qxd6 {[%clk 0:01:30]} 21. Rad1 {[%clk 0:02:15]}  Rad8 {[%clk 0:01:25]} 22. Rfe1 {[%clk 0:02:13]}  d4 {[%clk 0:01:10]} 23. Ne4 {[%clk 0:02:12]}  Nxe4 {[%clk 0:01:10]} 24. Qxe4 {[%clk 0:02:13]}  Kh8 {[%clk 0:01:04]} 25. f4 {[%clk 0:02:10]}  a5 {[%clk 0:01:00]} 26. h4 {[%clk 0:02:04]}  a4 {[%clk 0:00:58]} 27. Qe5 {[%clk 0:02:02]}  Qxe5 {[%clk 0:00:52]} 28. Rxe5 {[%clk 0:02:03]}  Rb8 {[%clk 0:00:48]} 29. Rd2 {[%clk 0:02:01]}  Rb6 {[%clk 0:00:47]} 30. Rxc5 {[%clk 0:02:01]}  Rfb8 {[%clk 0:00:48]} 31. b3 {[%clk 0:01:55]}  axb3 {[%clk 0:00:48]} 32. axb3 {[%clk 0:01:56]}  Rxb3 {[%clk 0:00:47]} 33. Rxd4 {[%clk 0:01:57]}  Rc3 {[%clk 0:00:45]} 34. Kh3 {[%clk 0:01:57]}  Rbb3 {[%clk 0:00:46]} 35. Rxc6 {[%clk 0:01:55]}  Rxg3+ {[%clk 0:00:46]} 36. Kh2 {[%clk 0:01:56]}  Rgf3 {[%clk 0:00:35]} 37. Rc8+ {[%clk 0:01:47]}  Kh7 {[%clk 0:00:36]} 38. Rc7 {[%clk 0:01:48]}  Rf2+ {[%clk 0:00:33]} 39. Kg1 {[%clk 0:01:48]}  Rc2 {[%clk 0:00:26]} 40. Rd1 {[%clk 0:01:47]}  Rbb2 {[%clk 0:00:26]} 41. c5 {[%clk 0:01:44]}  Rg2+ {[%clk 0:00:27]} 42. Kh1 {[%clk 0:01:42]}  Rh2+ {[%clk 0:00:27]} 43. Kg1 {[%clk 0:01:42]}  Rxh4 {[%clk 0:00:22]} 44. Rdd7 {[%clk 0:01:37]}  Rg4+ {[%clk 0:00:21]} 45. Kh1 {[%clk 0:01:38]}  h5 {[%clk 0:00:18]} 46. c6 {[%clk 0:01:37]}  Rb3 {[%clk 0:00:17]} 47. Kh2 {[%clk 0:01:36]}  Rb2+ {[%clk 0:00:17]} 48. Kh3 {[%clk 0:01:25]}  Rb3+ {[%clk 0:00:16]} 49. Kh2 {[%clk 0:01:25]}  h4 {[%clk 0:00:16]} 50. Rd5 {[%clk 0:01:20]}  Kg6 {[%clk 0:00:10]} 51. Rcd7 {[%clk 0:01:18]}  Rc3 {[%clk 0:00:08]} 52. c7 {[%clk 0:01:17]}  Rgg3 {[%clk 0:00:07]} 53. R5d6+ {[%clk 0:01:00]}  Kh7 {[%clk 0:00:07]} 54. Rd5 {[%clk 0:00:59]}  Rc2+ {[%clk 0:00:08]} 55. Kh1 {[%clk 0:00:59]}  Rc1+ {[%clk 0:00:08]} 56. Kh2 {[%clk 0:00:59]}  Rc2+ {[%clk 0:00:08]} 57. Kh1 {[%clk 0:01:00]}  Rc1+ {[%clk 0:00:09]} 58. Kh2 {[%clk 0:01:00]}  Rc2+ {[%clk 0:00:09]} 1/2-1/2


[Site "https://www.chess.com"]

[Event "Titled Tuesday Blitz June 21 Late 2022"]
[White "Toncheva, Nadya"]
[Black "Kanyamarala, Tarun"]
[WhiteFideId "2924056"]
[BlackFideId "45004714"]
[WhiteElo "1888"]
[BlackElo "2219"]
[Result "0-1"]
[Round "11"]
[TimeControl "180+1"]
[Date "2022.06.22"]
[WhiteClock "0:00:01"]
[BlackClock "0:00:03"]

1. e4 {[%clk 0:03:00]}  e5 {[%clk 0:02:51]} 2. Nf3 {[%clk 0:03:00]}  Nc6 {[%clk 0:02:51]} 3. Bc4 {[%clk 0:03:00]}  h6 {[%clk 0:02:49]} 4. O-O {[%clk 0:02:57]}  g5 {[%clk 0:02:49]} 5. d4 {[%clk 0:02:54]}  exd4 {[%clk 0:02:49]} 6. Nxd4 {[%clk 0:02:53]}  d6 {[%clk 0:02:48]} 7. Nc3 {[%clk 0:02:51]}  Bg7 {[%clk 0:02:47]} 8. Be3 {[%clk 0:02:50]}  Nge7 {[%clk 0:02:46]} 9. f4 {[%clk 0:02:49]}  gxf4 {[%clk 0:02:34]} 10. Rxf4 {[%clk 0:02:48]}  Ne5 {[%clk 0:02:34]} 11. Qh5 {[%clk 0:02:29]}  O-O {[%clk 0:02:33]} 12. Be2 {[%clk 0:02:11]}  N7g6 {[%clk 0:02:30]} 13. Rf2 {[%clk 0:01:56]}  Qh4 {[%clk 0:02:24]} 14. h3 {[%clk 0:01:48]}  Qxh5 {[%clk 0:02:23]} 15. Bxh5 {[%clk 0:01:48]}  c6 {[%clk 0:02:23]} 16. Rd1 {[%clk 0:01:40]}  Nc4 {[%clk 0:02:22]} 17. Bc1 {[%clk 0:01:38]}  Nge5 {[%clk 0:02:01]} 18. b3 {[%clk 0:01:36]}  Nb6 {[%clk 0:01:59]} 19. Ba3 {[%clk 0:01:28]}  c5 {[%clk 0:01:41]} 20. Ndb5 {[%clk 0:01:24]}  Be6 {[%clk 0:01:31]} 21. Nxd6 {[%clk 0:01:21]}  Rfd8 {[%clk 0:01:27]} 22. Bxc5 {[%clk 0:01:16]}  Ned7 {[%clk 0:01:21]} 23. Bd4 {[%clk 0:01:13]}  Ne5 {[%clk 0:01:15]} 24. Nf5 {[%clk 0:01:06]}  Bxf5 {[%clk 0:01:14]} 25. Rxf5 {[%clk 0:00:56]}  Rxd4 {[%clk 0:00:43]} 26. Rxd4 {[%clk 0:00:55]}  Nf3+ {[%clk 0:00:44]} 27. Rxf3 {[%clk 0:00:55]}  Bxd4+ {[%clk 0:00:44]} 28. Kh2 {[%clk 0:00:54]}  Be5+ {[%clk 0:00:41]} 29. g3 {[%clk 0:00:53]}  Rc8 {[%clk 0:00:41]} 30. Bxf7+ {[%clk 0:00:48]}  Kh8 {[%clk 0:00:40]} 31. Nd1 {[%clk 0:00:34]}  Rxc2+ {[%clk 0:00:39]} 32. Rf2 {[%clk 0:00:35]}  Rc1 {[%clk 0:00:38]} 33. Ne3 {[%clk 0:00:28]}  Re1 {[%clk 0:00:35]} 34. Ng4 {[%clk 0:00:22]}  Bd4 {[%clk 0:00:31]} 35. Rf4 {[%clk 0:00:16]}  Re2+ {[%clk 0:00:28]} 36. Kh1 {[%clk 0:00:16]}  Rxa2 {[%clk 0:00:28]} 37. Nxh6 {[%clk 0:00:15]}  Be3 {[%clk 0:00:26]} 38. Rh4 {[%clk 0:00:07]}  Bxh6 {[%clk 0:00:20]} 39. Rxh6+ {[%clk 0:00:08]}  Kg7 {[%clk 0:00:20]} 40. Rh5 {[%clk 0:00:06]}  Kxf7 {[%clk 0:00:21]} 41. Rh7+ {[%clk 0:00:06]}  Ke6 {[%clk 0:00:20]} 42. Rxb7 {[%clk 0:00:07]}  Nd7 {[%clk 0:00:16]} 43. h4 {[%clk 0:00:07]}  Ne5 {[%clk 0:00:16]} 44. Kg1 {[%clk 0:00:07]}  Nf3+ {[%clk 0:00:15]} 45. Kf1 {[%clk 0:00:07]}  Nd2+ {[%clk 0:00:15]} 46. Ke2 {[%clk 0:00:07]}  Nxb3+ {[%clk 0:00:15]} 47. Kf3 {[%clk 0:00:07]}  Nd4+ {[%clk 0:00:14]} 48. Kf4 {[%clk 0:00:06]}  a5 {[%clk 0:00:13]} 49. h5 {[%clk 0:00:06]}  a4 {[%clk 0:00:13]} 50. h6 {[%clk 0:00:06]}  Rh2 {[%clk 0:00:10]} 51. Ra7 {[%clk 0:00:07]}  Ne2+ {[%clk 0:00:09]} 52. Ke3 {[%clk 0:00:05]}  Nc3 {[%clk 0:00:09]} 53. Kd3 {[%clk 0:00:04]}  Nd1 {[%clk 0:00:07]} 54. Kc4 {[%clk 0:00:02]}  Nb2+ {[%clk 0:00:06]} 55. Kc3 {[%clk 0:00:01]}  Ke5 {[%clk 0:00:06]} 56. h7 {[%clk 0:00:01]}  Nd1+ {[%clk 0:00:05]} 57. Kb4 {[%clk 0:00:01]}  Kxe4 {[%clk 0:00:03]} 0-1


[Site "https://www.chess.com"]

[Event "Titled Tuesday Blitz June 21 Late 2022"]
[White "Vivas Zamora, Fabian Ernesto"]
[Black "Hoffmann, Asa"]
[WhiteFideId "3902480"]
[BlackFideId "2001470"]
[WhiteElo "2014"]
[BlackElo "2117"]
[Result "1-0"]
[Round "11"]
[TimeControl "180+1"]
[Date "2022.06.22"]
[WhiteClock "0:00:53"]
[BlackClock "0:02:07"]

1. e4 {[%clk 0:03:00]}  d6 {[%clk 0:02:57]} 2. d4 {[%clk 0:03:00]}  Nf6 {[%clk 0:02:52]} 3. Nc3 {[%clk 0:03:00]}  c6 {[%clk 0:02:48]} 4. f4 {[%clk 0:02:54]}  Qa5 {[%clk 0:02:46]} 5. e5 {[%clk 0:02:52]}  Ne4 {[%clk 0:02:45]} 6. Qf3 {[%clk 0:02:50]}  Bf5 {[%clk 0:02:44]} 7. Bd3 {[%clk 0:02:38]}  d5 {[%clk 0:02:44]} 8. Ne2 {[%clk 0:02:35]}  e6 {[%clk 0:02:44]} 9. O-O {[%clk 0:02:23]}  Nxc3 {[%clk 0:02:43]} 10. Nxc3 {[%clk 0:02:15]}  g6 {[%clk 0:02:37]} 11. g4 {[%clk 0:02:07]}  Bxd3 {[%clk 0:02:36]} 12. Qxd3 {[%clk 0:02:08]}  c5 {[%clk 0:02:36]} 13. f5 {[%clk 0:02:05]}  gxf5 {[%clk 0:02:32]} 14. gxf5 {[%clk 0:02:05]}  cxd4 {[%clk 0:02:32]} 15. Nb5 {[%clk 0:01:35]}  Nc6 {[%clk 0:02:28]} 16. fxe6 {[%clk 0:01:25]}  fxe6 {[%clk 0:02:27]} 17. Rxf8+ {[%clk 0:01:13]}  Rxf8 {[%clk 0:02:25]} 18. Nd6+ {[%clk 0:01:12]}  Kd7 {[%clk 0:02:17]} 19. Qxh7+ {[%clk 0:00:56]}  Ne7 {[%clk 0:02:16]} 20. Bg5 {[%clk 0:00:57]}  Rg8 {[%clk 0:02:11]} 21. Qxe7+ {[%clk 0:00:56]}  Kc6 {[%clk 0:02:11]} 22. Qxb7+ {[%clk 0:00:55]}  Kc5 {[%clk 0:02:10]} 23. b4+ {[%clk 0:00:53]}  Qxb4 {[%clk 0:02:07]} 24. Qc7# {[%clk 0:00:53]} 1-0


[Site "https://www.chess.com"]

[Event "Titled Tuesday Blitz June 21 Late 2022"]
[White "Vujic, Mihailo"]
[Black "Koziorowicz, Michal"]
[WhiteFideId "918873"]
[BlackFideId "21809194"]
[WhiteElo "2256"]
[BlackElo "2202"]
[Result "1/2-1/2"]
[Round "11"]
[TimeControl "180+1"]
[Date "2022.06.21"]
[WhiteClock "0:00:12"]
[BlackClock "0:00:21"]

1. e4 {[%clk 0:02:59]}  c5 {[%clk 0:02:59]} 2. Nf3 {[%clk 0:02:59]}  d6 {[%clk 0:02:59]} 3. c3 {[%clk 0:02:59]}  Nf6 {[%clk 0:02:59]} 4. Be2 {[%clk 0:03:00]}  Bd7 {[%clk 0:02:59]} 5. d3 {[%clk 0:02:59]}  g6 {[%clk 0:02:58]} 6. O-O {[%clk 0:02:58]}  Bg7 {[%clk 0:02:59]} 7. h3 {[%clk 0:02:56]}  c4 {[%clk 0:02:57]} 8. Bf4 {[%clk 0:02:54]}  cxd3 {[%clk 0:02:57]} 9. Bxd3 {[%clk 0:02:55]}  O-O {[%clk 0:02:57]} 10. Qd2 {[%clk 0:02:53]}  Re8 {[%clk 0:02:57]} 11. Bh6 {[%clk 0:02:53]}  Bh8 {[%clk 0:02:57]} 12. Ng5 {[%clk 0:02:34]}  Nc6 {[%clk 0:02:54]} 13. f4 {[%clk 0:02:31]}  Rc8 {[%clk 0:02:41]} 14. Kh2 {[%clk 0:02:29]}  Qa5 {[%clk 0:02:29]} 15. b4 {[%clk 0:02:20]}  Qc7 {[%clk 0:02:27]} 16. Bc4 {[%clk 0:02:15]}  Nd8 {[%clk 0:02:24]} 17. Bb3 {[%clk 0:02:09]}  e6 {[%clk 0:02:09]} 18. f5 {[%clk 0:02:07]}  d5+ {[%clk 0:02:09]} 19. Kg1 {[%clk 0:01:55]}  dxe4 {[%clk 0:01:59]} 20. fxg6 {[%clk 0:01:37]}  hxg6 {[%clk 0:01:58]} 21. Qf2 {[%clk 0:00:58]}  Qb6 {[%clk 0:01:55]} 22. Qxb6 {[%clk 0:00:57]}  axb6 {[%clk 0:01:56]} 23. Nd2 {[%clk 0:00:46]}  Rxc3 {[%clk 0:01:52]} 24. Ndxe4 {[%clk 0:00:44]}  Nxe4 {[%clk 0:01:52]} 25. Nxe4 {[%clk 0:00:44]}  Rxb3 {[%clk 0:01:50]} 26. axb3 {[%clk 0:00:40]}  f5 {[%clk 0:01:38]} 27. Nd6 {[%clk 0:00:35]}  Bxa1 {[%clk 0:01:13]} 28. Rxa1 {[%clk 0:00:36]}  Kh7 {[%clk 0:01:06]} 29. Nxe8 {[%clk 0:00:31]}  Kxh6 {[%clk 0:01:05]} 30. Nd6 {[%clk 0:00:28]}  Nc6 {[%clk 0:01:00]} 31. b5 {[%clk 0:00:20]}  Ne7 {[%clk 0:00:44]} 32. Nxb7 {[%clk 0:00:17]}  Bxb5 {[%clk 0:00:41]} 33. Nd8 {[%clk 0:00:16]}  e5 {[%clk 0:00:40]} 34. Nf7+ {[%clk 0:00:15]}  Kg7 {[%clk 0:00:40]} 35. Nxe5 {[%clk 0:00:16]}  Kf6 {[%clk 0:00:40]} 36. Nf3 {[%clk 0:00:15]}  Bc6 {[%clk 0:00:38]} 37. Ra6 {[%clk 0:00:14]}  Nc8 {[%clk 0:00:36]} 38. Nd4 {[%clk 0:00:12]}  Bb7 {[%clk 0:00:35]} 39. Ra3 {[%clk 0:00:11]}  Ke5 {[%clk 0:00:34]} 40. Nf3+ {[%clk 0:00:11]}  Kf4 {[%clk 0:00:34]} 41. b4 {[%clk 0:00:11]}  g5 {[%clk 0:00:31]} 42. Kf2 {[%clk 0:00:12]}  g4 {[%clk 0:00:31]} 43. g3+ {[%clk 0:00:12]}  Ke4 {[%clk 0:00:29]} 44. Re3+ {[%clk 0:00:13]}  Kd5 {[%clk 0:00:26]} 45. hxg4 {[%clk 0:00:13]}  fxg4 {[%clk 0:00:25]} 46. Ne5 {[%clk 0:00:13]}  Nd6 {[%clk 0:00:23]} 47. Nxg4 {[%clk 0:00:13]}  Ne4+ {[%clk 0:00:23]} 48. Ke1 {[%clk 0:00:13]}  Kc4 {[%clk 0:00:21]} 49. Ne5+ {[%clk 0:00:11]}  Kd4 {[%clk 0:00:20]} 50. Rxe4+ {[%clk 0:00:11]}  Bxe4 {[%clk 0:00:20]} 51. Nd7 {[%clk 0:00:10]}  b5 {[%clk 0:00:20]} 52. Nc5 {[%clk 0:00:10]}  Bg6 {[%clk 0:00:18]} 53. Kd2 {[%clk 0:00:10]}  Kc4 {[%clk 0:00:18]} 54. Na6 {[%clk 0:00:09]}  Be4 {[%clk 0:00:19]} 55. Ke3 {[%clk 0:00:08]}  Bb7 {[%clk 0:00:19]} 56. Nc7 {[%clk 0:00:08]}  Kxb4 {[%clk 0:00:19]} 57. Kd4 {[%clk 0:00:08]}  Bf3 {[%clk 0:00:17]} 58. Ne6 {[%clk 0:00:07]}  Ka3 {[%clk 0:00:16]} 59. Nc5 {[%clk 0:00:06]}  b4 {[%clk 0:00:16]} 60. Ke3 {[%clk 0:00:06]}  Bh5 {[%clk 0:00:15]} 61. Kf4 {[%clk 0:00:06]}  Kb2 {[%clk 0:00:16]} 62. g4 {[%clk 0:00:06]}  Be8 {[%clk 0:00:16]} 63. Nd3+ {[%clk 0:00:05]}  Kc3 {[%clk 0:00:16]} 64. Nxb4 {[%clk 0:00:05]}  Kxb4 {[%clk 0:00:17]} 65. Ke5 {[%clk 0:00:05]}  Kc5 {[%clk 0:00:17]} 66. Kf6 {[%clk 0:00:06]}  Kd6 {[%clk 0:00:17]} 67. g5 {[%clk 0:00:07]}  Bh5 {[%clk 0:00:17]} 68. g6 {[%clk 0:00:07]}  Bf3 {[%clk 0:00:18]} 69. g7 {[%clk 0:00:08]}  Bd5 {[%clk 0:00:19]} 70. Kg6 {[%clk 0:00:08]}  Bg8 {[%clk 0:00:15]} 71. Kf6 {[%clk 0:00:07]}  Kd7 {[%clk 0:00:16]} 72. Kg6 {[%clk 0:00:08]}  Ke7 {[%clk 0:00:17]} 73. Kh6 {[%clk 0:00:08]}  Ke6 {[%clk 0:00:18]} 74. Kg5 {[%clk 0:00:08]}  Ke5 {[%clk 0:00:18]} 75. Kh6 {[%clk 0:00:09]}  Kf6 {[%clk 0:00:18]} 76. Kh5 {[%clk 0:00:10]}  Kf5 {[%clk 0:00:19]} 77. Kh4 {[%clk 0:00:10]}  Kf6 {[%clk 0:00:20]} 78. Kh5 {[%clk 0:00:11]}  Bh7 {[%clk 0:00:20]} 79. Kh4 {[%clk 0:00:12]}  Bg8 {[%clk 0:00:21]} 80. Kh5 {[%clk 0:00:12]} 1/2-1/2


[Site "https://www.chess.com"]

[Event "Titled Tuesday Blitz June 21 Late 2022"]
[White "Wang, Isaac"]
[Black "Remolar Gallen, Jose"]
[WhiteFideId "30977185"]
[BlackFideId "2215187"]
[WhiteElo "2304"]
[BlackElo "2205"]
[Result "0-1"]
[Round "11"]
[TimeControl "180+1"]
[Date "2022.06.22"]
[WhiteClock "0:01:47"]
[BlackClock "0:01:47"]

1. d4 {[%clk 0:03:00]}  Nf6 {[%clk 0:02:58]} 2. c4 {[%clk 0:03:01]}  g6 {[%clk 0:02:58]} 3. Nc3 {[%clk 0:03:00]}  Bg7 {[%clk 0:02:59]} 4. e4 {[%clk 0:03:00]}  d6 {[%clk 0:02:59]} 5. h3 {[%clk 0:02:59]}  O-O {[%clk 0:02:59]} 6. Be3 {[%clk 0:03:00]}  e5 {[%clk 0:02:58]} 7. d5 {[%clk 0:03:00]}  Na6 {[%clk 0:02:58]} 8. g4 {[%clk 0:02:59]}  Nc5 {[%clk 0:02:58]} 9. f3 {[%clk 0:02:59]}  a5 {[%clk 0:02:57]} 10. Qd2 {[%clk 0:02:58]}  Nfd7 {[%clk 0:02:56]} 11. h4 {[%clk 0:02:51]}  f5 {[%clk 0:02:56]} 12. gxf5 {[%clk 0:02:50]}  gxf5 {[%clk 0:02:57]} 13. Nge2 {[%clk 0:02:45]}  f4 {[%clk 0:02:25]} 14. Bf2 {[%clk 0:02:44]}  Nf6 {[%clk 0:02:15]} 15. Bh3 {[%clk 0:02:40]}  Bxh3 {[%clk 0:02:14]} 16. Rxh3 {[%clk 0:02:41]}  Qd7 {[%clk 0:02:12]} 17. Rh2 {[%clk 0:02:40]}  Nh5 {[%clk 0:02:09]} 18. O-O-O {[%clk 0:02:37]}  b6 {[%clk 0:02:08]} 19. Rg1 {[%clk 0:02:36]}  Kh8 {[%clk 0:02:09]} 20. Rg5 {[%clk 0:02:28]}  Qf7 {[%clk 0:02:04]} 21. Ng1 {[%clk 0:02:19]}  Bf6 {[%clk 0:02:03]} 22. Rgg2 {[%clk 0:02:13]}  Rg8 {[%clk 0:02:00]} 23. Nh3 {[%clk 0:02:13]}  Ng3 {[%clk 0:01:53]} 24. Ne2 {[%clk 0:01:57]}  Nf1 {[%clk 0:01:48]} 25. Qe1 {[%clk 0:01:47]}  Nd3+ {[%clk 0:01:47]} 0-1


[Site "https://www.chess.com"]

[Event "Titled Tuesday Blitz June 21 Late 2022"]
[White "Zhigalko, Sergei"]
[Black "Janaszak, Dawid"]
[WhiteFideId "13502956"]
[BlackFideId "1119206"]
[WhiteElo "2662"]
[BlackElo "2199"]
[Result "0-1"]
[Round "11"]
[TimeControl "180+1"]
[Date "2022.06.21"]
[WhiteClock "0:00:13"]
[BlackClock "0:00:44"]

1. e4 {[%clk 0:03:00]}  c5 {[%clk 0:02:59]} 2. Nf3 {[%clk 0:03:00]}  Nc6 {[%clk 0:02:59]} 3. c3 {[%clk 0:03:00]}  e5 {[%clk 0:02:56]} 4. Bc4 {[%clk 0:03:00]}  Nf6 {[%clk 0:02:56]} 5. Ng5 {[%clk 0:02:59]}  d5 {[%clk 0:02:56]} 6. exd5 {[%clk 0:03:00]}  Na5 {[%clk 0:02:56]} 7. Qa4+ {[%clk 0:02:54]}  Nd7 {[%clk 0:02:46]} 8. d3 {[%clk 0:02:12]}  a6 {[%clk 0:02:34]} 9. d6 {[%clk 0:02:00]}  Nxc4 {[%clk 0:02:27]} 10. Qxc4 {[%clk 0:01:59]}  Qf6 {[%clk 0:02:24]} 11. Ne4 {[%clk 0:01:56]}  Qg6 {[%clk 0:02:23]} 12. O-O {[%clk 0:01:53]}  Bxd6 {[%clk 0:02:17]} 13. f4 {[%clk 0:01:52]}  f5 {[%clk 0:01:47]} 14. Nxd6+ {[%clk 0:01:44]}  Qxd6 {[%clk 0:01:48]} 15. Re1 {[%clk 0:01:31]}  b5 {[%clk 0:01:38]} 16. fxe5 {[%clk 0:01:30]}  Qc6 {[%clk 0:01:29]} 17. Qf4 {[%clk 0:01:13]}  Bb7 {[%clk 0:01:28]} 18. Re2 {[%clk 0:01:13]}  O-O {[%clk 0:01:23]} 19. Nd2 {[%clk 0:01:13]}  Nxe5 {[%clk 0:01:09]} 20. d4 {[%clk 0:00:25]}  Ng6 {[%clk 0:01:00]} 21. Qf2 {[%clk 0:00:24]}  Rae8 {[%clk 0:00:52]} 22. Nb3 {[%clk 0:00:18]}  Rxe2 {[%clk 0:00:47]} 23. Qxe2 {[%clk 0:00:19]}  Re8 {[%clk 0:00:47]} 24. Qf2 {[%clk 0:00:20]}  Re1+ {[%clk 0:00:44]} 25. Qxe1 {[%clk 0:00:13]}  Qxg2# {[%clk 0:00:44]} 0-1


[Site "https://www.chess.com"]

[Event "Titled Tuesday Blitz June 21 Late 2022"]
[White "Zhou, Qiyu"]
[Black "Mikhalsky, Vladimir"]
[WhiteFideId "505161"]
[BlackFideId "14144352"]
[WhiteElo "1925"]
[BlackElo "2301"]
[Result "1-0"]
[Round "11"]
[TimeControl "180+1"]
[Date "2022.06.22"]
[WhiteClock "0:00:11"]
[BlackClock "0:00:04"]

1. e4 {[%clk 0:03:00]}  g6 {[%clk 0:02:48]} 2. d4 {[%clk 0:03:00]}  Bg7 {[%clk 0:02:46]} 3. Nc3 {[%clk 0:03:00]}  d6 {[%clk 0:02:46]} 4. Be3 {[%clk 0:03:01]}  a6 {[%clk 0:02:45]} 5. f3 {[%clk 0:03:01]}  b5 {[%clk 0:02:44]} 6. Qd2 {[%clk 0:03:01]}  Bb7 {[%clk 0:02:42]} 7. O-O-O {[%clk 0:03:02]}  Nd7 {[%clk 0:02:36]} 8. g4 {[%clk 0:03:01]}  h5 {[%clk 0:02:35]} 9. g5 {[%clk 0:02:59]}  Nb6 {[%clk 0:02:33]} 10. Bd3 {[%clk 0:02:58]}  b4 {[%clk 0:02:31]} 11. Nce2 {[%clk 0:02:57]}  a5 {[%clk 0:02:32]} 12. Kb1 {[%clk 0:02:57]}  Ba6 {[%clk 0:02:22]} 13. f4 {[%clk 0:02:55]}  Nc4 {[%clk 0:02:10]} 14. Bxc4 {[%clk 0:02:54]}  Bxc4 {[%clk 0:02:11]} 15. Nf3 {[%clk 0:02:54]}  e6 {[%clk 0:02:09]} 16. f5 {[%clk 0:02:43]}  gxf5 {[%clk 0:01:52]} 17. exf5 {[%clk 0:02:44]}  exf5 {[%clk 0:01:51]} 18. Rhe1 {[%clk 0:02:41]}  Qd7 {[%clk 0:01:49]} 19. Nf4 {[%clk 0:02:34]}  O-O-O {[%clk 0:01:36]} 20. d5 {[%clk 0:02:21]}  Ne7 {[%clk 0:01:26]} 21. Bd4 {[%clk 0:02:16]}  Bxd4 {[%clk 0:00:56]} 22. Qxd4 {[%clk 0:02:17]}  Ba6 {[%clk 0:00:55]} 23. Qa7 {[%clk 0:02:05]}  Bb7 {[%clk 0:00:49]} 24. Qxa5 {[%clk 0:02:04]}  Ng6 {[%clk 0:00:47]} 25. Qxb4 {[%clk 0:01:59]}  Rde8 {[%clk 0:00:44]} 26. Nxg6 {[%clk 0:01:34]}  fxg6 {[%clk 0:00:43]} 27. Qd4 {[%clk 0:01:33]}  Qb5 {[%clk 0:00:35]} 28. c4 {[%clk 0:01:22]}  Qb4 {[%clk 0:00:35]} 29. Nd2 {[%clk 0:01:21]}  Kb8 {[%clk 0:00:31]} 30. a3 {[%clk 0:01:15]}  Qa4 {[%clk 0:00:30]} 31. Qc3 {[%clk 0:01:07]}  Rhf8 {[%clk 0:00:28]} 32. Rc1 {[%clk 0:01:04]}  f4 {[%clk 0:00:25]} 33. Nf3 {[%clk 0:01:04]}  Qa7 {[%clk 0:00:20]} 34. Nd4 {[%clk 0:00:52]}  Rxe1 {[%clk 0:00:16]} 35. Rxe1 {[%clk 0:00:53]}  f3 {[%clk 0:00:16]} 36. Ne6 {[%clk 0:00:51]}  f2 {[%clk 0:00:15]} 37. Rf1 {[%clk 0:00:50]}  Rf5 {[%clk 0:00:15]} 38. h4 {[%clk 0:00:27]}  Re5 {[%clk 0:00:14]} 39. Ka2 {[%clk 0:00:19]}  Re2 {[%clk 0:00:13]} 40. Qf3 {[%clk 0:00:16]}  Rc2 {[%clk 0:00:11]} 41. Qd3 {[%clk 0:00:11]}  Qa4 {[%clk 0:00:08]} 42. Qb3 {[%clk 0:00:03]}  Qxb3+ {[%clk 0:00:07]} 43. Kxb3 {[%clk 0:00:04]}  Re2 {[%clk 0:00:07]} 44. Nd4 {[%clk 0:00:04]}  Rd2 {[%clk 0:00:07]} 45. Kc3 {[%clk 0:00:02]}  Rxd4 {[%clk 0:00:04]} 46. Kxd4 {[%clk 0:00:03]}  c5+ {[%clk 0:00:03]} 47. dxc6 {[%clk 0:00:03]}  Bxc6 {[%clk 0:00:03]} 48. Rxf2 {[%clk 0:00:04]}  Kc7 {[%clk 0:00:03]} 49. Rf8 {[%clk 0:00:05]}  Kb6 {[%clk 0:00:03]} 50. Rf6 {[%clk 0:00:05]}  Bd7 {[%clk 0:00:03]} 51. Rxd6+ {[%clk 0:00:05]}  Kc7 {[%clk 0:00:03]} 52. Rxg6 {[%clk 0:00:06]}  Bg4 {[%clk 0:00:03]} 53. Rg7+ {[%clk 0:00:07]}  Kd6 {[%clk 0:00:03]} 54. Rg6+ {[%clk 0:00:07]}  Ke7 {[%clk 0:00:03]} 55. Rh6 {[%clk 0:00:08]}  Kd7 {[%clk 0:00:03]} 56. c5 {[%clk 0:00:09]}  Kc7 {[%clk 0:00:03]} 57. b4 {[%clk 0:00:10]}  Kb7 {[%clk 0:00:04]} 58. b5 {[%clk 0:00:11]}  Kc7 {[%clk 0:00:04]} 59. c6 {[%clk 0:00:12]}  Kb6 {[%clk 0:00:04]} 60. Kc4 {[%clk 0:00:10]}  Be2+ {[%clk 0:00:04]} 61. Kb4 {[%clk 0:00:11]}  Bg4 {[%clk 0:00:04]} 62. a4 {[%clk 0:00:11]} 1-0


[Site "https://www.chess.com"]